[Event "Late-Titled-Tuesday-Blitz-February-20-2024"]
[Site "Chess.com"]
[Date "2024.02.20"]
[Round "7"]
[White "PNEPaul"]
[Black "besarquis"]
[Result "0-1"]
[WhiteElo "1972"]
[BlackElo "2199"]
[TimeControl "180+1"]
[EndTime "15:16:25 PST"]
[Termination "besarquis won on time"]

1. e4 {[%clk 0:03:00.9]} 1... c5 {[%clk 0:02:51.2]} 2. Nf3 {[%clk 0:02:59.6]}
2... Nc6 {[%clk 0:02:51.4]} 3. d4 {[%clk 0:02:59.8]} 3... cxd4 {[%clk
0:02:51.8]} 4. c3 {[%clk 0:02:59.9]} 4... dxc3 {[%clk 0:02:45.4]} 5. Nxc3 {[%clk
0:02:59.1]} 5... g6 {[%clk 0:02:45.8]} 6. Bc4 {[%clk 0:02:58.6]} 6... Bg7 {[%clk
0:02:43.7]} 7. Bg5 {[%clk 0:02:58.4]} 7... d6 {[%clk 0:02:35.9]} 8. Qb3 {[%clk
0:02:57.3]} 8... Nf6 {[%clk 0:01:37.4]} 9. Bxf7+ {[%clk 0:02:53.4]} 9... Kf8
{[%clk 0:01:37.5]} 10. Bd5 {[%clk 0:02:50.7]} 10... Bg4 {[%clk 0:01:35]} 11. O-O
{[%clk 0:02:27.7]} 11... Bxf3 {[%clk 0:01:27.5]} 12. gxf3 {[%clk 0:02:26.9]}
12... Ne5 {[%clk 0:01:20.3]} 13. Qd1 {[%clk 0:02:19.1]} 13... Qd7 {[%clk
0:01:18.8]} 14. Kg2 {[%clk 0:01:46.2]} 14... h6 {[%clk 0:01:11.6]} 15. Bxf6
{[%clk 0:01:44.2]} 15... Bxf6 {[%clk 0:01:09.9]} 16. h3 {[%clk 0:01:36.9]} 16...
Kg7 {[%clk 0:01:04.1]} 17. f4 {[%clk 0:01:32.4]} 17... Nc6 {[%clk 0:01:02.7]}
18. Bb3 {[%clk 0:01:15.5]} 18... Rhf8 {[%clk 0:01:02.3]} 19. e5 {[%clk
0:01:01.9]} 19... Bh4 {[%clk 0:00:55.5]} 20. e6 {[%clk 0:01:00.6]} 20... Qe8
{[%clk 0:00:49.5]} 21. Nd5 {[%clk 0:00:58]} 21... Rc8 {[%clk 0:00:48.9]} 22. Qg4
{[%clk 0:00:43.5]} 22... Bf6 {[%clk 0:00:48.5]} 23. Rad1 {[%clk 0:00:26]} 23...
h5 {[%clk 0:00:42.3]} 24. Qe2 {[%clk 0:00:19.6]} 24... Nd4 {[%clk 0:00:36.9]}
25. Rxd4 {[%clk 0:00:05.7]} 25... Bxd4 {[%clk 0:00:36.4]} 26. Qe4 {[%clk
0:00:02.5]} 26... Bxb2 {[%clk 0:00:30.1]} 0-1

[Event "Late-Titled-Tuesday-Blitz-February-20-2024"]
[Site "Chess.com"]
[Date "2024.02.20"]
[Round "7"]
[White "IlyaGrigorjev"]
[Black "GMBenjaminBok"]
[Result "1-0"]
[WhiteElo "2913"]
[BlackElo "2997"]
[TimeControl "180+1"]
[EndTime "15:16:28 PST"]
[Termination "IlyaGrigorjev won by resignation"]

1. e4 {[%clk 0:03:00.9]} 1... c5 {[%clk 0:02:59.7]} 2. Nf3 {[%clk 0:03:01.1]}
2... d6 {[%clk 0:03:00.1]} 3. d4 {[%clk 0:03:00]} 3... cxd4 {[%clk 0:03:01]} 4.
Nxd4 {[%clk 0:03:00.9]} 4... Nf6 {[%clk 0:03:01.5]} 5. Nc3 {[%clk 0:03:01.5]}
5... a6 {[%clk 0:03:02.1]} 6. Bg5 {[%clk 0:03:00.8]} 6... Nbd7 {[%clk
0:03:01.9]} 7. Qe2 {[%clk 0:03:00.4]} 7... e6 {[%clk 0:03:00.8]} 8. O-O-O {[%clk
0:03:00.2]} 8... b5 {[%clk 0:03:00.3]} 9. f4 {[%clk 0:02:55.2]} 9... Qc7 {[%clk
0:02:59.6]} 10. f5 {[%clk 0:02:52.1]} 10... e5 {[%clk 0:02:56.8]} 11. Nd5 {[%clk
0:02:52.5]} 11... Nxd5 {[%clk 0:02:55.9]} 12. exd5 {[%clk 0:02:53.4]} 12... Nb6
{[%clk 0:02:44.9]} 13. Qh5 {[%clk 0:02:42.9]} 13... Be7 {[%clk 0:02:43.8]} 14.
Bd3 {[%clk 0:02:21.3]} 14... Bxg5+ {[%clk 0:02:36.9]} 15. Qxg5 {[%clk
0:02:21.4]} 15... f6 {[%clk 0:02:37.4]} 16. Qh5+ {[%clk 0:02:02.5]} 16... Qf7
{[%clk 0:02:37.1]} 17. Qe2 {[%clk 0:02:03.2]} 17... Bb7 {[%clk 0:02:03]} 18. Ne6
{[%clk 0:01:37.5]} 18... Bxd5 {[%clk 0:01:17.7]} 19. Bxb5+ {[%clk 0:01:24.3]}
19... axb5 {[%clk 0:01:17.5]} 20. Qxb5+ {[%clk 0:01:25.2]} 20... Qd7 {[%clk
0:01:17.1]} 21. Qxb6 {[%clk 0:01:25]} 21... Bxe6 {[%clk 0:01:03.4]} 22. Rxd6
{[%clk 0:01:24.4]} 22... Qa7 {[%clk 0:00:31.6]} 23. Rd8+ {[%clk 0:01:24.6]}
23... Rxd8 {[%clk 0:00:24.9]} 24. Qxa7 {[%clk 0:01:24.9]} 24... Bf7 {[%clk
0:00:23.4]} 25. Qa4+ {[%clk 0:01:21.3]} 25... Ke7 {[%clk 0:00:22.7]} 26. Qb4+
{[%clk 0:01:19.6]} 26... Rd6 {[%clk 0:00:18.4]} 27. Rd1 {[%clk 0:01:20.2]} 27...
Rd8 {[%clk 0:00:18.5]} 28. a4 {[%clk 0:01:17.9]} 28... Be8 {[%clk 0:00:14.9]}
29. a5 {[%clk 0:01:17.2]} 29... Bc6 {[%clk 0:00:15.2]} 30. a6 {[%clk 0:01:15.9]}
30... Bxg2 {[%clk 0:00:13.2]} 31. Rxd6 {[%clk 0:01:07.9]} 31... Rxd6 {[%clk
0:00:14.1]} 32. Qg4 {[%clk 0:01:08.2]} 32... Bd5 {[%clk 0:00:10.9]} 33. a7
{[%clk 0:00:56.3]} 33... Ra6 {[%clk 0:00:09.4]} 34. Qb4+ {[%clk 0:00:44.9]}
34... Kf7 {[%clk 0:00:09.9]} 35. Qb8 {[%clk 0:00:45.1]} 35... Bf3 {[%clk
0:00:02.8]} 36. Qc7+ {[%clk 0:00:44.6]} 1-0

[Event "Late-Titled-Tuesday-Blitz-February-20-2024"]
[Site "Chess.com"]
[Date "2024.02.20"]
[Round "7"]
[White "jinxy2009"]
[Black "maurovargas01"]
[Result "1-0"]
[WhiteElo "2196"]
[BlackElo "1863"]
[TimeControl "180+1"]
[EndTime "15:16:30 PST"]
[Termination "jinxy2009 won on time"]

1. e4 {[%clk 0:03:00.9]} 1... d5 {[%clk 0:02:57.9]} 2. exd5 {[%clk 0:02:59.9]}
2... Qxd5 {[%clk 0:02:58.8]} 3. Nc3 {[%clk 0:02:59.3]} 3... Qa5 {[%clk
0:02:58.6]} 4. d4 {[%clk 0:02:59.7]} 4... c6 {[%clk 0:02:58.9]} 5. Nf3 {[%clk
0:02:59.5]} 5... Nf6 {[%clk 0:02:59.2]} 6. Bc4 {[%clk 0:02:54.8]} 6... Bg4
{[%clk 0:02:57.8]} 7. h3 {[%clk 0:02:54.2]} 7... Bh5 {[%clk 0:02:56.1]} 8. g4
{[%clk 0:02:54.3]} 8... Bg6 {[%clk 0:02:56]} 9. Ne5 {[%clk 0:02:54.3]} 9... Be4
{[%clk 0:02:55.6]} 10. Bxf7+ {[%clk 0:02:40.7]} 10... Kd8 {[%clk 0:02:49.7]} 11.
f3 {[%clk 0:02:39.4]} 11... Bd5 {[%clk 0:02:45]} 12. Bxd5 {[%clk 0:02:39.2]}
12... cxd5 {[%clk 0:02:45]} 13. Nf7+ {[%clk 0:02:38.7]} 13... Ke8 {[%clk
0:02:44.2]} 14. Nxh8 {[%clk 0:02:38.5]} 14... Qc7 {[%clk 0:02:41.2]} 15. Kf2
{[%clk 0:02:11.8]} 15... g6 {[%clk 0:02:38.4]} 16. Qe2 {[%clk 0:02:02.6]} 16...
Qd6 {[%clk 0:02:36.8]} 17. Nb5 {[%clk 0:01:38.9]} 17... Qb6 {[%clk 0:02:22.5]}
18. Bf4 {[%clk 0:01:32.6]} 18... Na6 {[%clk 0:02:10.5]} 19. c3 {[%clk
0:00:43.6]} 19... Bg7 {[%clk 0:02:09.3]} 20. Rhe1 {[%clk 0:00:35.2]} 20... Qd8
{[%clk 0:02:07.6]} 21. Nd6+ {[%clk 0:00:20.5]} 21... Kf8 {[%clk 0:02:01.8]} 22.
Qe6 {[%clk 0:00:19.9]} 1-0

[Event "Late-Titled-Tuesday-Blitz-February-20-2024"]
[Site "Chess.com"]
[Date "2024.02.20"]
[Round "7"]
[White "Nouali_Mohamed"]
[Black "MyDream003"]
[Result "0-1"]
[WhiteElo "2555"]
[BlackElo "2753"]
[TimeControl "180+1"]
[EndTime "15:16:31 PST"]
[Termination "MyDream003 won on time"]

1. e4 {[%clk 0:02:59]} 1... c5 {[%clk 0:02:59.5]} 2. Nf3 {[%clk 0:02:59.1]} 2...
d6 {[%clk 0:02:59.6]} 3. d4 {[%clk 0:02:58.6]} 3... cxd4 {[%clk 0:03:00.5]} 4.
Nxd4 {[%clk 0:02:59.3]} 4... Nf6 {[%clk 0:03:00.7]} 5. Nc3 {[%clk 0:02:58.9]}
5... Nc6 {[%clk 0:03:00.9]} 6. Bc4 {[%clk 0:02:58.3]} 6... e6 {[%clk 0:02:54.6]}
7. Bb3 {[%clk 0:02:57.9]} 7... Be7 {[%clk 0:02:49]} 8. Be3 {[%clk 0:02:44.4]}
8... a6 {[%clk 0:02:38.5]} 9. Qe2 {[%clk 0:02:28.2]} 9... Na5 {[%clk 0:02:35.3]}
10. g4 {[%clk 0:02:17.5]} 10... Nxb3 {[%clk 0:02:30.7]} 11. axb3 {[%clk
0:02:18.4]} 11... Nd7 {[%clk 0:02:30.5]} 12. Rg1 {[%clk 0:01:58.7]} 12... h6
{[%clk 0:02:14.2]} 13. f4 {[%clk 0:01:45.6]} 13... Qc7 {[%clk 0:02:06.6]} 14.
Bf2 {[%clk 0:01:37.9]} 14... g5 {[%clk 0:01:59.1]} 15. Nf5 {[%clk 0:01:13.7]}
15... Bf6 {[%clk 0:01:16.8]} 16. O-O-O {[%clk 0:01:01.1]} 16... exf5 {[%clk
0:01:10.9]} 17. Nd5 {[%clk 0:00:58.3]} 17... Qa5 {[%clk 0:01:03.2]} 18. Nxf6+
{[%clk 0:00:41.6]} 18... Nxf6 {[%clk 0:01:02.7]} 19. exf5+ {[%clk 0:00:42.2]}
19... Kd7 {[%clk 0:00:50.3]} 20. fxg5 {[%clk 0:00:24]} 20... Re8 {[%clk
0:00:44.8]} 21. Rxd6+ {[%clk 0:00:14.9]} 21... Kxd6 {[%clk 0:00:44.6]} 22. Bg3+
{[%clk 0:00:10.7]} 22... Kc6 {[%clk 0:00:41.8]} 23. Qf3+ {[%clk 0:00:03.9]}
23... Ne4 {[%clk 0:00:31.4]} 24. Kb1 {[%clk 0:00:02.8]} 24... Qd5 {[%clk
0:00:28.5]} 0-1

[Event "Late-Titled-Tuesday-Blitz-February-20-2024"]
[Site "Chess.com"]
[Date "2024.02.20"]
[Round "7"]
[White "Jaka_Brilej"]
[Black "adwilhans"]
[Result "1-0"]
[WhiteElo "2509"]
[BlackElo "2341"]
[TimeControl "180+1"]
[EndTime "15:16:31 PST"]
[Termination "Jaka_Brilej won on time"]

1. Nf3 {[%clk 0:03:00.9]} 1... f5 {[%clk 0:02:59.5]} 2. g3 {[%clk 0:02:57.4]}
2... Nf6 {[%clk 0:02:59.2]} 3. Bg2 {[%clk 0:02:55.8]} 3... g6 {[%clk 0:02:59.7]}
4. d4 {[%clk 0:02:44.6]} 4... Bg7 {[%clk 0:03:00]} 5. O-O {[%clk 0:02:43.2]}
5... O-O {[%clk 0:03:00.4]} 6. c4 {[%clk 0:02:42.4]} 6... d6 {[%clk 0:03:00.9]}
7. Nc3 {[%clk 0:02:37.2]} 7... Nc6 {[%clk 0:03:01.4]} 8. d5 {[%clk 0:02:35.4]}
8... Ne5 {[%clk 0:03:00.9]} 9. Nxe5 {[%clk 0:02:31.4]} 9... dxe5 {[%clk
0:03:00.6]} 10. Qb3 {[%clk 0:02:30.6]} 10... e4 {[%clk 0:02:47.2]} 11. c5 {[%clk
0:02:28.1]} 11... Kh8 {[%clk 0:02:46.6]} 12. Rd1 {[%clk 0:02:16.4]} 12... b6
{[%clk 0:02:30]} 13. Be3 {[%clk 0:01:45.4]} 13... Ng4 {[%clk 0:02:29.4]} 14. Bd4
{[%clk 0:01:44.9]} 14... Bxd4 {[%clk 0:02:28.6]} 15. Rxd4 {[%clk 0:01:45.8]}
15... bxc5 {[%clk 0:02:28.4]} 16. Rc4 {[%clk 0:01:43.7]} 16... Qd6 {[%clk
0:02:00.4]} 17. Qa3 {[%clk 0:01:27.5]} 17... Rb8 {[%clk 0:01:42.6]} 18. b3
{[%clk 0:01:21]} 18... Rb4 {[%clk 0:01:36.7]} 19. Qxa7 {[%clk 0:01:15.9]} 19...
Rxc4 {[%clk 0:01:11.5]} 20. bxc4 {[%clk 0:01:14.9]} 20... Qe5 {[%clk 0:01:11.3]}
21. Rc1 {[%clk 0:01:11.4]} 21... Qd4 {[%clk 0:01:04.3]} 22. Nd1 {[%clk
0:01:09.7]} 22... Qd2 {[%clk 0:00:58.9]} 23. Qa3 {[%clk 0:01:09.1]} 23... e5
{[%clk 0:00:39.8]} 24. h3 {[%clk 0:00:47.6]} 24... Nf6 {[%clk 0:00:31]} 25. Qc3
{[%clk 0:00:45.3]} 25... Qxe2 {[%clk 0:00:18.1]} 26. Qxe5 {[%clk 0:00:39.7]}
26... Rf7 {[%clk 0:00:11.2]} 27. Ne3 {[%clk 0:00:36]} 27... Qxa2 {[%clk
0:00:08]} 28. Ra1 {[%clk 0:00:33.9]} 28... Qd2 {[%clk 0:00:05.3]} 29. Ra8 {[%clk
0:00:34.5]} 29... Kg7 {[%clk 0:00:03.4]} 30. Rxc8 {[%clk 0:00:33.7]} 1-0

[Event "Late-Titled-Tuesday-Blitz-February-20-2024"]
[Site "Chess.com"]
[Date "2024.02.20"]
[Round "7"]
[White "ridnani1"]
[Black "Herman-NY"]
[Result "1/2-1/2"]
[WhiteElo "2393"]
[BlackElo "2506"]
[TimeControl "180+1"]
[EndTime "15:16:45 PST"]
[Termination "Game drawn by agreement"]

1. e4 {[%clk 0:02:55.1]} 1... e5 {[%clk 0:03:00.3]} 2. Nf3 {[%clk 0:02:54.9]}
2... Nc6 {[%clk 0:03:00.8]} 3. d4 {[%clk 0:02:55.1]} 3... exd4 {[%clk
0:03:00.7]} 4. Nxd4 {[%clk 0:02:56]} 4... Qf6 {[%clk 0:03:00.1]} 5. Be3 {[%clk
0:02:45.9]} 5... Bc5 {[%clk 0:02:57.4]} 6. c3 {[%clk 0:02:44.3]} 6... Nge7
{[%clk 0:02:56.4]} 7. Be2 {[%clk 0:02:41.3]} 7... b6 {[%clk 0:02:52.4]} 8. O-O
{[%clk 0:02:40.4]} 8... Bb7 {[%clk 0:02:50.6]} 9. Bf3 {[%clk 0:02:37.6]} 9...
Ne5 {[%clk 0:02:45.9]} 10. Nd2 {[%clk 0:02:33.9]} 10... Nxf3+ {[%clk 0:02:35.8]}
11. Qxf3 {[%clk 0:02:33.6]} 11... Qxf3 {[%clk 0:02:34]} 12. gxf3 {[%clk
0:02:34.5]} 12... O-O-O {[%clk 0:01:21.5]} 13. N2b3 {[%clk 0:02:30.5]} 13... f5
{[%clk 0:01:06.9]} 14. Nxc5 {[%clk 0:02:25.7]} 14... bxc5 {[%clk 0:01:07.1]} 15.
Nxf5 {[%clk 0:02:26]} 15... Nxf5 {[%clk 0:01:07.5]} 16. exf5 {[%clk 0:02:26.9]}
16... Rdf8 {[%clk 0:00:26.8]} 17. f4 {[%clk 0:01:54.8]} 17... Bf3 {[%clk
0:00:12.2]} 18. h4 {[%clk 0:01:49.8]} 18... Rxf5 {[%clk 0:00:09.3]} 19. Kh2
{[%clk 0:01:49.9]} 19... Rhf8 {[%clk 0:00:08.2]} 20. Kg3 {[%clk 0:01:49]} 20...
Bc6 {[%clk 0:00:08.4]} 21. Rad1 {[%clk 0:01:44]} 21... R8f6 {[%clk 0:00:08.4]}
22. f3 {[%clk 0:01:42.5]} 22... Rg6+ {[%clk 0:00:08.8]} 23. Kf2 {[%clk
0:01:42.9]} 23... Rh5 {[%clk 0:00:08.6]} 24. Rg1 {[%clk 0:01:39.6]} 24... Rxg1
{[%clk 0:00:03]} 25. Rxg1 {[%clk 0:01:40.5]} 25... g6 {[%clk 0:00:03.5]} 26. Rg5
{[%clk 0:01:34.4]} 26... Rxh4 {[%clk 0:00:03.9]} 27. Kg2 {[%clk 0:01:32.3]}
27... d6 {[%clk 0:00:02.6]} 28. b4 {[%clk 0:01:29.9]} 28... cxb4 {[%clk
0:00:02.5]} 29. cxb4 {[%clk 0:01:30.8]} 29... a6 {[%clk 0:00:03]} 30. a3 {[%clk
0:01:29]} 30... Bd7 {[%clk 0:00:03.3]} 31. Bf2 {[%clk 0:01:26.8]} 31... Rh5
{[%clk 0:00:01.8]} 32. Rxh5 {[%clk 0:01:26.4]} 32... gxh5 {[%clk 0:00:02.7]} 33.
Kg3 {[%clk 0:01:26.8]} 33... Bf5 {[%clk 0:00:03.2]} 34. Kh4 {[%clk 0:01:26.7]}
34... Bg6 {[%clk 0:00:03.8]} 35. Kg5 {[%clk 0:01:27.1]} 35... Kd7 {[%clk
0:00:04.2]} 36. f5 {[%clk 0:01:26.7]} 36... Be8 {[%clk 0:00:04.9]} 37. Kh6
{[%clk 0:01:27.1]} 37... Ke7 {[%clk 0:00:05.3]} 38. Bh4+ {[%clk 0:01:27.3]}
38... Kf7 {[%clk 0:00:05.7]} 39. Kxh7 {[%clk 0:01:27.7]} 39... Bd7 {[%clk
0:00:06.3]} 40. Bd8 {[%clk 0:01:20.2]} 40... c5 {[%clk 0:00:06.1]} 41. bxc5
{[%clk 0:01:18.9]} 41... dxc5 {[%clk 0:00:07]} 42. Kh6 {[%clk 0:01:17.5]} 42...
Bxf5 {[%clk 0:00:06.7]} 43. Kxh5 {[%clk 0:01:17.3]} 43... c4 {[%clk 0:00:07.6]}
44. Ba5 {[%clk 0:01:16.9]} 44... Ke6 {[%clk 0:00:08.3]} 45. Kg5 {[%clk
0:01:17.1]} 45... Bc2 {[%clk 0:00:08.8]} 46. Kf4 {[%clk 0:01:17]} 46... Kd5
{[%clk 0:00:09.7]} 47. Ke3 {[%clk 0:01:17.3]} 47... Kc6 {[%clk 0:00:09.2]} 48.
Kd4 {[%clk 0:01:16.4]} 48... Kb5 {[%clk 0:00:09.6]} 49. Bc3 {[%clk 0:01:14.7]}
49... Bh7 {[%clk 0:00:10.2]} 50. f4 {[%clk 0:01:11.7]} 50... Bg8 {[%clk
0:00:11.1]} 51. f5 {[%clk 0:01:11.5]} 51... Ka4 {[%clk 0:00:11.7]} 52. Bb4
{[%clk 0:01:11.1]} 52... a5 {[%clk 0:00:11.5]} 53. Bd2 {[%clk 0:01:02.9]} 53...
Kxa3 {[%clk 0:00:09.7]} 54. Bxa5 {[%clk 0:01:02.1]} 54... Kb3 {[%clk 0:00:08.7]}
1/2-1/2

[Event "Late-Titled-Tuesday-Blitz-February-20-2024"]
[Site "Chess.com"]
[Date "2024.02.20"]
[Round "7"]
[White "GolfBeforeChess"]
[Black "kylelancman"]
[Result "1-0"]
[WhiteElo "2309"]
[BlackElo "2448"]
[TimeControl "180+1"]
[EndTime "15:16:50 PST"]
[Termination "GolfBeforeChess won on time"]

1. Nf3 {[%clk 0:03:00.9]} 1... c5 {[%clk 0:02:59.3]} 2. c4 {[%clk 0:02:58.3]}
2... g6 {[%clk 0:02:57.8]} 3. g3 {[%clk 0:02:58.8]} 3... Bg7 {[%clk 0:02:57.8]}
4. Bg2 {[%clk 0:02:59.5]} 4... Nc6 {[%clk 0:02:57]} 5. O-O {[%clk 0:03:00]} 5...
e5 {[%clk 0:02:55.9]} 6. Nc3 {[%clk 0:02:59.3]} 6... Nge7 {[%clk 0:02:56.3]} 7.
d3 {[%clk 0:02:59]} 7... O-O {[%clk 0:02:56.3]} 8. a3 {[%clk 0:02:59.3]} 8... d6
{[%clk 0:02:55.3]} 9. Rb1 {[%clk 0:02:51.2]} 9... a5 {[%clk 0:02:55.2]} 10. Ne1
{[%clk 0:02:50.5]} 10... Be6 {[%clk 0:02:48.8]} 11. Nc2 {[%clk 0:02:49.7]} 11...
d5 {[%clk 0:02:47.6]} 12. cxd5 {[%clk 0:02:49.5]} 12... Nxd5 {[%clk 0:02:48.3]}
13. Nxd5 {[%clk 0:02:45.1]} 13... Bxd5 {[%clk 0:02:49.2]} 14. b4 {[%clk
0:02:40.9]} 14... Bxg2 {[%clk 0:02:38.4]} 15. Kxg2 {[%clk 0:02:40.3]} 15... cxb4
{[%clk 0:02:32.4]} 16. axb4 {[%clk 0:02:40.5]} 16... a4 {[%clk 0:02:33]} 17. b5
{[%clk 0:02:40.4]} 17... Nd4 {[%clk 0:02:30.1]} 18. Ba3 {[%clk 0:02:34.3]} 18...
Re8 {[%clk 0:02:22.6]} 19. Nxd4 {[%clk 0:02:27.1]} 19... exd4 {[%clk 0:02:19.4]}
20. Re1 {[%clk 0:02:15.2]} 20... Qd5+ {[%clk 0:02:11.9]} 21. Kg1 {[%clk
0:02:14.6]} 21... Rec8 {[%clk 0:02:05.5]} 22. Qd2 {[%clk 0:01:58.4]} 22... Rc3
{[%clk 0:02:03]} 23. Qb2 {[%clk 0:01:31.1]} 23... Rb3 {[%clk 0:01:57.8]} 24. Qa2
{[%clk 0:01:27.2]} 24... Qxb5 {[%clk 0:01:46.1]} 25. Rec1 {[%clk 0:01:22.6]}
25... h5 {[%clk 0:01:32.2]} 26. h4 {[%clk 0:01:13.7]} 26... Re8 {[%clk
0:01:31.1]} 27. Rxb3 {[%clk 0:01:09.1]} 27... axb3 {[%clk 0:01:06.3]} 28. Qb2
{[%clk 0:01:09.1]} 28... Qa4 {[%clk 0:01:02.1]} 29. Rc4 {[%clk 0:01:07.7]} 29...
Qa5 {[%clk 0:00:59.3]} 30. Rb4 {[%clk 0:01:06.5]} 30... Bf8 {[%clk 0:00:51.4]}
31. Rxb3 {[%clk 0:01:02.1]} 31... Bxa3 {[%clk 0:00:30.7]} 32. Rxa3 {[%clk
0:00:48.4]} 32... Qe1+ {[%clk 0:00:26.4]} 33. Kg2 {[%clk 0:00:48.7]} 33... Rd8
{[%clk 0:00:13.2]} 34. Rb3 {[%clk 0:00:38.5]} 34... Re8 {[%clk 0:00:10]} 35.
Rxb7 {[%clk 0:00:27.8]} 35... Rxe2 {[%clk 0:00:05.7]} 36. Qxd4 {[%clk
0:00:24.2]} 36... Kh7 {[%clk 0:00:01.9]} 37. Rxf7+ {[%clk 0:00:23.4]} 1-0

[Event "Late-Titled-Tuesday-Blitz-February-20-2024"]
[Site "Chess.com"]
[Date "2024.02.20"]
[Round "7"]
[White "Vasily85"]
[Black "Felix-Rose"]
[Result "1-0"]
[WhiteElo "2457"]
[BlackElo "2263"]
[TimeControl "180+1"]
[EndTime "15:16:52 PST"]
[Termination "Vasily85 won on time"]

1. e4 {[%clk 0:03:00.9]} 1... e5 {[%clk 0:02:58.7]} 2. Nf3 {[%clk 0:03:01.4]}
2... Nc6 {[%clk 0:02:58.9]} 3. Bc4 {[%clk 0:03:01.8]} 3... Nf6 {[%clk
0:02:58.6]} 4. d3 {[%clk 0:02:59.5]} 4... Bc5 {[%clk 0:02:58.4]} 5. O-O {[%clk
0:02:58.2]} 5... d6 {[%clk 0:02:58.4]} 6. c3 {[%clk 0:02:52]} 6... a5 {[%clk
0:02:58.3]} 7. Nbd2 {[%clk 0:02:45.7]} 7... Ba7 {[%clk 0:02:58.2]} 8. Re1 {[%clk
0:02:34.7]} 8... O-O {[%clk 0:02:58.3]} 9. h3 {[%clk 0:02:32.8]} 9... Be6 {[%clk
0:02:55.7]} 10. Bb5 {[%clk 0:02:26.6]} 10... Ne7 {[%clk 0:02:54.4]} 11. Nf1
{[%clk 0:02:23.4]} 11... Ng6 {[%clk 0:02:53.8]} 12. d4 {[%clk 0:02:11.5]} 12...
c6 {[%clk 0:02:48.8]} 13. Bd3 {[%clk 0:02:08.6]} 13... exd4 {[%clk 0:02:04.7]}
14. cxd4 {[%clk 0:02:09.5]} 14... d5 {[%clk 0:02:05]} 15. e5 {[%clk 0:01:57.1]}
15... Ne4 {[%clk 0:02:04.8]} 16. N1d2 {[%clk 0:01:44]} 16... Nxd2 {[%clk
0:01:46.7]} 17. Bxd2 {[%clk 0:01:44.9]} 17... c5 {[%clk 0:01:32.3]} 18. Ng5
{[%clk 0:01:07.8]} 18... Re8 {[%clk 0:00:27]} 19. dxc5 {[%clk 0:00:53.2]} 19...
Bxc5 {[%clk 0:00:23.4]} 20. Bxg6 {[%clk 0:00:45.5]} 20... fxg6 {[%clk
0:00:17.6]} 21. Rc1 {[%clk 0:00:42.1]} 21... b6 {[%clk 0:00:09.6]} 22. Qe2
{[%clk 0:00:31.3]} 22... d4 {[%clk 0:00:09.3]} 23. Nxe6 {[%clk 0:00:29]} 23...
Rxe6 {[%clk 0:00:09.6]} 24. Qc4 {[%clk 0:00:29.9]} 24... Qd7 {[%clk 0:00:08]}
25. Kh2 {[%clk 0:00:21.5]} 25... Kh8 {[%clk 0:00:06.4]} 26. f4 {[%clk
0:00:21.5]} 26... Rf8 {[%clk 0:00:04.6]} 27. Rf1 {[%clk 0:00:19.2]} 27... Re7
{[%clk 0:00:03.6]} 28. Bxa5 {[%clk 0:00:19.1]} 1-0

[Event "Late-Titled-Tuesday-Blitz-February-20-2024"]
[Site "Chess.com"]
[Date "2024.02.20"]
[Round "7"]
[White "rcmz"]
[Black "rachidhuilda"]
[Result "1/2-1/2"]
[WhiteElo "2194"]
[BlackElo "2345"]
[TimeControl "180+1"]
[EndTime "15:16:52 PST"]
[Termination "Game drawn by repetition"]

1. b4 {[%clk 0:02:46]} 1... d5 {[%clk 0:02:58.4]} 2. Bb2 {[%clk 0:02:45.1]} 2...
Nf6 {[%clk 0:02:58.9]} 3. e3 {[%clk 0:02:44.9]} 3... Bf5 {[%clk 0:02:55.9]} 4.
f4 {[%clk 0:02:44.1]} 4... e6 {[%clk 0:02:50]} 5. a3 {[%clk 0:02:43.7]} 5... a5
{[%clk 0:02:49.4]} 6. b5 {[%clk 0:02:43.2]} 6... c5 {[%clk 0:02:46.7]} 7. Nf3
{[%clk 0:02:43]} 7... Be7 {[%clk 0:02:43.4]} 8. Be2 {[%clk 0:02:36.2]} 8... Nbd7
{[%clk 0:02:37.1]} 9. O-O {[%clk 0:02:35.2]} 9... O-O {[%clk 0:02:36.4]} 10. Nh4
{[%clk 0:02:22.7]} 10... h6 {[%clk 0:02:33.2]} 11. Nxf5 {[%clk 0:02:21.9]} 11...
exf5 {[%clk 0:02:33.3]} 12. c4 {[%clk 0:01:58.9]} 12... Nb6 {[%clk 0:02:22.2]}
13. Qc2 {[%clk 0:01:31.9]} 13... Ne4 {[%clk 0:02:20.9]} 14. d3 {[%clk
0:01:27.3]} 14... Nf6 {[%clk 0:02:13.4]} 15. Bf3 {[%clk 0:01:17.5]} 15... Rc8
{[%clk 0:01:59.8]} 16. Nc3 {[%clk 0:01:11.2]} 16... Ng4 {[%clk 0:01:48.7]} 17.
Qe2 {[%clk 0:00:44]} 17... d4 {[%clk 0:01:28.7]} 18. Nd1 {[%clk 0:00:31.5]}
18... Nxe3 {[%clk 0:01:07.9]} 19. Nxe3 {[%clk 0:00:29.7]} 19... dxe3 {[%clk
0:01:08.8]} 20. Qxe3 {[%clk 0:00:28.9]} 20... Rc7 {[%clk 0:00:48]} 21. Rad1
{[%clk 0:00:20.2]} 21... Bf6 {[%clk 0:00:45.2]} 22. Be5 {[%clk 0:00:18.6]} 22...
Bxe5 {[%clk 0:00:43.4]} 23. fxe5 {[%clk 0:00:17.5]} 23... Qg5 {[%clk 0:00:36.4]}
24. Qf2 {[%clk 0:00:15.1]} 24... Nd7 {[%clk 0:00:23.3]} 25. Rfe1 {[%clk
0:00:14.1]} 25... Re8 {[%clk 0:00:22.7]} 26. d4 {[%clk 0:00:11.4]} 26... cxd4
{[%clk 0:00:22.2]} 27. Qxd4 {[%clk 0:00:11.3]} 27... Nf8 {[%clk 0:00:20.3]} 28.
Bd5 {[%clk 0:00:09.9]} 28... Qe7 {[%clk 0:00:18.1]} 29. Qf4 {[%clk 0:00:07]}
29... Qg5 {[%clk 0:00:09.6]} 30. Qd4 {[%clk 0:00:05.3]} 30... Qe7 {[%clk
0:00:09]} 31. Qf4 {[%clk 0:00:04.7]} 31... Qg5 {[%clk 0:00:09]} 32. Qd4 {[%clk
0:00:04.3]} 1/2-1/2